fUSD/lending_fUSD_20251225
["ID","MTS","AMOUNT","RATE_DAILY","PERIOD"]
[399695854,1766625065030,-151.0,0.00035,30]
[399695855,1766625065039,-151.0,0.00035,31]
[399695856,1766625065049,-151.0,0.00035,31]
[399695857,1766625065059,-151.0,0.00035,31]
[399695858,1766625065068,-151.0,0.00035,31]
[399695859,1766625065078,-454.48961,0.00035,31]
[399695860,1766625065087,-265.038126,0.00035,31]
[399695861,1766625065097,-454.48961,0.00035,31]
[399695862,1766625065107,-454.48961,0.00035,31]
[399695863,1766625065117,-265.038126,0.00035,31]
[399695864,1766625065126,-265.038126,0.00035,31]
[399695865,1766625065136,-454.48961,0.00035,31]
[399695866,1766625065146,-265.038126,0.00035,31]
[399695867,1766625065155,-151.0,0.00035,31]
[399695868,1766625065165,-151.0,0.00035,31]
[399695869,1766625065175,-151.0,0.00035,31]
[399695870,1766625065185,-151.0,0.00035,31]
[399695871,1766625065195,-151.0,0.00035,31]
[399695872,1766625065204,-151.0,0.00035,31]
[399695873,1766625065214,-151.0,0.00035,31]
[399695874,1766625065224,-151.0,0.00035,31]
[399695875,1766625065233,-151.0,0.00035,31]
[399695876,1766625065243,-151.0,0.00035,31]
[399695877,1766625065253,-151.0,0.00035,31]
[399695878,1766625065263,-151.0,0.00035,7]
[399695879,1766625065273,-151.0,0.00035,31]
[399695880,1766625065282,-151.0,0.00035,31]
[399695881,1766625065292,-151.0,0.00035,31]
[399695882,1766625065302,-156.150535,0.00035,31]
[399695883,1766625065311,-172.38425773,0.00035,5]
[399695884,1766625065321,-801.29689861,0.00035,3]
[399695885,1766625065330,-800.0,0.0003506,13]
[399695886,1766625065340,-800.0,0.0003506,13]
[399695887,1766625065350,-800.0,0.0003506,13]
[399695888,1766625065359,-800.0,0.0003506,13]
[399695889,1766625065370,-800.0,0.0003506,13]
[399695890,1766625065393,-800.0,0.0003506,13]
[399695891,1766625065405,-152.0,0.00035085,10]
[399695892,1766625065415,-200.0,0.00035126,2]
[399695893,1766625065426,-200.0,0.00035126,2]
[399695894,1766625065436,-200.0,0.00035126,2]
[399695895,1766625065447,-200.0,0.00035126,2]
[399695896,1766625065457,-200.0,0.00035126,2]
[399695897,1766625065468,-200.0,0.00035126,2]
[399695898,1766625065478,-200.0,0.00035126,2]
[399695899,1766625065488,-200.0,0.00035126,2]
[399695900,1766625065498,-200.0,0.00035126,2]
[399695901,1766625065509,-200.0,0.00035126,2]
[399695902,1766625065519,-200.0,0.00035126,2]
[399695903,1766625065528,-200.0,0.00035126,2]
[399695904,1766625065538,-200.0,0.00035126,2]
[399695905,1766625065548,-200.0,0.00035126,2]
[399695906,1766625065558,-200.0,0.00035126,2]
[399695907,1766625065568,-200.0,0.00035126,2]
[399695908,1766625065578,-200.0,0.00035126,2]
[399695909,1766625065589,-800.0,0.00035126,13]
[399695910,1766625065600,-800.0,0.00035126,13]
[399695911,1766625065610,-800.0,0.00035126,13]
[399695912,1766625065621,-800.0,0.00035126,13]
[399695913,1766625065631,-800.0,0.00035126,13]
[399695914,1766625065641,-800.0,0.00035126,13]
[399695915,1766625065651,-478.0,0.00035126,13]
[399695916,1766625065661,-200.0,0.00035126,2]
[399695917,1766625065671,-200.0,0.00035126,2]
[399695918,1766625065681,-200.0,0.00035126,2]
[399695919,1766625065691,-200.0,0.00035126,2]
[399695920,1766625065702,-200.0,0.00035126,2]
[399695921,1766625065714,-200.0,0.00035126,2]
[399695922,1766625065731,-200.0,0.00035126,2]
[399695923,1766625065748,-200.0,0.00035126,2]
[399695924,1766625065759,-200.0,0.00035126,2]
[399695925,1766625065772,-200.0,0.00035126,2]
[399695926,1766625065783,-200.0,0.00035126,2]
[399695927,1766625065794,-200.0,0.00035126,2]
[399695928,1766625065806,-200.0,0.00035126,2]
[399695929,1766625065817,-200.0,0.00035126,2]
[399695930,1766625065828,-200.0,0.00035126,2]
[399695931,1766625065839,-200.0,0.00035126,2]
[399695932,1766625065850,-200.0,0.00035126,2]
[399695933,1766625065860,-200.0,0.00035126,2]
[399695934,1766625065871,-348.0,0.00035126,2]
[399695935,1766625065882,-554.17,0.00035155,2]
[399695936,1766625065893,-554.17,0.00035155,2]
[399695937,1766625065903,-554.17,0.00035155,2]
[399695938,1766625065914,-1000.0,0.000352,7]
[399695939,1766625065925,-671.36563388,0.00035279,14]
[399695940,1766625065936,-720.72,0.000353,30]
[399695941,1766625065947,-170.76,0.00035397,2]
[399695942,1766625065957,-358.75,0.00035397,2]
[399695943,1766625065967,-170.76,0.00035397,2]
[399695944,1766625065978,-170.76,0.00035397,2]
[399695945,1766625065988,-170.76,0.00035397,2]
[399695946,1766625065999,-162.0,0.00035475,11]
[399695947,1766625066010,-160.0,0.00035475,11]
[399695948,1766625066021,-162.0,0.00035475,11]
[399695949,1766625066031,-554.17,0.00035484,2]
[399695950,1766625066042,-554.17,0.00035484,2]
[399695951,1766625066053,-1277.83,0.000355,14]
[399695952,1766625066063,-164633.37,0.000355,14]
[399695953,1766625066075,-151.0,0.000355,31]
[399695954,1766625066086,-151.0,0.000355,31]
[399695955,1766625066103,-151.0,0.000355,31]
[399695956,1766625066113,-151.0,0.000355,31]
[399695957,1766625066124,-151.0,0.000355,31]
[399695958,1766625066135,-151.0,0.000355,31]
[399695959,1766625066145,-151.0,0.000355,31]
[399695960,1766625066156,-151.0,0.000355,31]
[399695961,1766625066167,-151.0,0.000355,31]
[399695962,1766625066178,-151.0,0.000355,31]
[399695963,1766625066189,-151.195056,0.000355,31]
[399695964,1766625066199,-151.0,0.000355,31]
[399695965,1766625066211,-151.0,0.000355,31]
[399695966,1766625066222,-210.070106,0.000355,31]
[399695967,1766625066234,-151.0,0.000355,31]
[399695968,1766625066244,-390.424502,0.000355,31]
[399695969,1766625066255,-151.0,0.000355,31]
[399695970,1766625066266,-423.644651,0.000355,31]
[399695971,1766625066277,-390.424502,0.000355,31]
[399695972,1766625066287,-151.0,0.000355,31]
[399695973,1766625066299,-151.0,0.000355,31]
[399695974,1766625066309,-151.0,0.000355,31]
[399695975,1766625066321,-423.644651,0.000355,31]
[399695976,1766625066332,-390.424502,0.000355,31]
[399695977,1766625066342,-151.0,0.000355,31]
[399695978,1766625066353,-151.0,0.000355,31]
[399695979,1766625066363,-151.0,0.000355,31]
[399695980,1766625066374,-151.0,0.000355,31]
[399695981,1766625066384,-151.0,0.000355,31]
[399695982,1766625066395,-423.644651,0.000355,31]
[399695983,1766625066406,-390.424502,0.000355,31]
[399695984,1766625066416,-196.686904,0.000355,31]
[399695985,1766625066427,-152.331422,0.000355,31]
[399695986,1766625066438,-423.644651,0.000355,31]
[399695987,1766625066448,-151.0,0.000355,31]
[399695988,1766625066458,-151.0,0.000355,31]
[399695989,1766625066468,-151.0,0.000355,31]
[399695990,1766625066479,-151.0,0.000355,31]
[399695991,1766625066490,-151.0,0.000355,31]
[399695992,1766625066500,-151.0,0.000355,31]
[399695993,1766625066511,-151.0,0.000355,31]
[399695994,1766625066521,-151.0,0.000355,31]
[399695995,1766625066531,-151.0,0.000355,31]
[399695996,1766625066541,-151.0,0.000355,31]
[399695997,1766625066551,-151.0,0.000355,31]
[399695998,1766625066561,-151.0,0.000355,31]
[399695999,1766625066571,-151.0,0.000355,31]
[399696000,1766625066581,-151.0,0.000355,31]
[399696001,1766625066592,-151.0,0.000355,31]
[399696002,1766625066601,-151.0,0.000355,31]
[399696003,1766625066612,-151.0,0.000355,31]
[399696004,1766625066622,-151.0,0.000355,31]
[399696005,1766625066632,-270.722478,0.000355,31]
[399696006,1766625066643,-151.0,0.000355,31]
[399696007,1766625066654,-151.0,0.000355,31]
[399696008,1766625066665,-269.698429,0.000355,31]
[399696009,1766625066675,-230.045846,0.000355,31]
[399696010,1766625066686,-151.0,0.000355,31]
[399696011,1766625066696,-269.698429,0.000355,31]
[399696012,1766625066706,-230.045846,0.000355,31]
[399696013,1766625066720,-185.4193,0.000355,31]
[399696014,1766625066731,-151.0,0.000355,31]
[399696015,1766625066741,-269.698429,0.000355,31]
[399696016,1766625066751,-230.045846,0.000355,31]
[399696017,1766625066763,-185.4193,0.000355,31]
[399696018,1766625066773,-151.0,0.000355,31]
[399696019,1766625066783,-269.698429,0.000355,31]
[399696020,1766625066796,-230.045846,0.000355,31]
[399696021,1766625066807,-185.4193,0.000355,31]
[399696022,1766625066817,-185.4193,0.000355,31]
[399696023,1766625066828,-151.0,0.000355,31]
[399696024,1766625066839,-151.0,0.000355,31]
[399696025,1766625066849,-151.0,0.000355,31]
[399696026,1766625066860,-642.821601,0.000355,31]
[399696027,1766625066870,-187.480537,0.000355,31]
[399696028,1766625066880,-642.821601,0.000355,31]
[399696029,1766625066891,-187.480537,0.000355,31]
[399696030,1766625066901,-642.821601,0.000355,31]
[399696031,1766625066912,-187.480537,0.000355,31]
[399696032,1766625066923,-642.821601,0.000355,31]
[399696033,1766625066933,-187.480537,0.000355,31]
[399696034,1766625066943,-352.43363352,0.0003551,2]
[399696035,1766625066955,-500.0,0.00035583,30]
[399696036,1766625066966,-150.0,0.00035583,2]
[399696037,1766625066976,-12165.59,0.000356,2]
[399696038,1766625066987,-56858.47059471,0.0003561,2]
[399696039,1766625066997,-152.848903,0.0003561,31]
[399696040,1766625067008,-151.0,0.0003561,31]
[399696041,1766625067019,-151.0,0.0003561,31]
[399696042,1766625067029,-151.0,0.0003561,31]
[399696043,1766625067040,-199.667636,0.0003561,31]
[399696044,1766625067050,-151.0,0.0003561,31]
[399696045,1766625067060,-199.667636,0.0003561,31]
[399696046,1766625067070,-151.0,0.0003561,31]
[399696047,1766625067080,-165.051788,0.0003561,31]
[399696048,1766625067090,-199.667636,0.0003561,31]
[399696049,1766625067101,-199.667636,0.0003561,31]
[399696050,1766625067111,-151.0,0.0003561,31]
[399696051,1766625067124,-151.0,0.0003561,7]
[399696052,1766625067144,-151.0,0.0003561,31]
[399696053,1766625067155,-151.0,0.0003561,31]
[399696054,1766625067166,-151.0,0.0003561,31]
[399696055,1766625067177,-212.373938,0.0003561,31]
[399696056,1766625067189,-151.0,0.0003561,31]
[399696057,1766625067210,-151.0,0.0003561,31]
[399696058,1766625067232,-151.0,0.0003561,31]
[399696059,1766625067250,-151.0,0.0003561,31]
[399696060,1766625067262,-151.0,0.0003561,31]
[399696061,1766625067274,-176.422848,0.0003561,31]
[399696062,1766625067287,-151.0,0.0003561,31]
[399696063,1766625067300,-185.326338,0.0003561,31]
[399696064,1766625067309,-151.0,0.0003561,31]
[399696065,1766625067321,-151.0,0.0003561,31]
[399696066,1766625067333,-160.005681,0.0003561,31]
[399696067,1766625067345,-160.005681,0.0003561,31]
[399696068,1766625067358,-160.005681,0.0003561,31]
[399696069,1766625067369,-160.005681,0.0003561,31]
[399696070,1766625067381,-151.0,0.0003561,31]
[399696071,1766625067403,-160.088414,0.0003561,31]
[399696072,1766625067424,-500.0,0.0003561,30]
[399696073,1766625067436,-169.80854666,0.00035616,83]
[399696074,1766625067449,-524.4,0.00035616,25]
[399696075,1766625067460,-200.91,0.00035616,35]
[399696076,1766625067472,-211.12406878,0.00035616,36]
[399696077,1766625067713,-151.0,0.00035616,31]
[399696078,1766625067741,-151.0,0.00035616,31]
[399696079,1766625067753,-151.0,0.00035616,31]
[399696080,1766625067764,-151.0,0.00035616,31]
[399696081,1766625067775,-151.0,0.00035616,31]
[399696082,1766625067786,-186.618688,0.00035616,31]
[399696083,1766625067796,-175.64156,0.00035616,30]
[399696084,1766625067807,-151.0,0.00035616,31]
[399696085,1766625067816,-3746.28,0.00035616,120]
[399696086,1766625067827,-500.0,0.00035616,5]
[399696087,1766625067838,-460.04576352,0.00035616,2]
[399696088,1766625067847,-697.66,0.00035616,2]
[399696089,1766625067858,-248.230825,0.00035616,31]
[399696090,1766625067867,-248.230825,0.00035616,31]
[399696091,1766625067878,-248.230825,0.00035616,31]
[399696092,1766625067888,-248.230825,0.00035616,31]
[399696093,1766625067898,-600.0,0.00035616,2]
[399696094,1766625067907,-440.80385974,0.00035616,2]
[399696095,1766625067918,-500.0,0.00035638,30]
[399696096,1766625067928,-671.36563388,0.00035642,14]
[399696097,1766625067938,-211.89187846,0.00035665,30]
[399696098,1766625067953,-393.71,0.000357,14]
[399696099,1766625067963,-200.0,0.000357,13]
[399696100,1766625067972,-521.30421736,0.00035763,2]
[399696101,1766625067983,-393.75649944,0.00035763,2]
[399696102,1766625067992,-579.11026946,0.00035796,2]
[399696103,1766625068002,-150.0,0.00035813,2]
[399696104,1766625068013,-150.0,0.00035813,2]
[399696105,1766625068023,-150.0,0.00035813,2]
[399696106,1766625068033,-150.0,0.00035813,2]
[399696107,1766625068043,-581.19,0.00035813,2]
[399696108,1766625068053,-554.17,0.00035813,2]
[399696109,1766625068063,-554.17,0.00035813,2]
[399696110,1766625068074,-152.0,0.0003584,11]
[399696111,1766625068084,-250.0,0.00035877,45]
[399696112,1766625068095,-530.88532,0.00035888,30]
[399696113,1766625068105,-1000.00000004,0.0003589,5]
[399696114,1766625068115,-164633.37,0.000359,14]
[399696115,1766625068125,-151.0,0.000359,31]
[399696116,1766625068135,-151.0,0.000359,31]
[399696117,1766625068145,-344.330746,0.000359,31]
[399696118,1766625068155,-344.330746,0.000359,31]
[399696119,1766625068164,-344.330746,0.000359,31]
[399696120,1766625068174,-151.0,0.000359,31]
[399696121,1766625068184,-151.0,0.000359,31]
[399696122,1766625068194,-344.330746,0.000359,31]
[399696123,1766625068204,-151.0,0.000359,31]
[399696124,1766625068214,-154.648902,0.000359,31]
[399696125,1766625068223,-151.0,0.000359,31]
[399696126,1766625068234,-151.0,0.000359,31]
[399696127,1766625068244,-151.0,0.000359,31]
[399696128,1766625068254,-151.0,0.000359,31]
[399696129,1766625068265,-151.0,0.000359,31]
[399696130,1766625068275,-255.943277,0.000359,31]
[399696131,1766625068285,-151.0,0.000359,31]
[399696132,1766625068295,-597.032921,0.000359,31]
[399696133,1766625068306,-255.943277,0.000359,31]
[399696134,1766625068316,-151.0,0.000359,31]
[399696135,1766625068327,-6288.73582637,0.00035966,2]
[399696136,1766625068338,-150.0,0.00035999,120]
[399696137,1766625068348,-300.0,0.00036,120]
[399696138,1766625068358,-262.81601765,0.00036,2]
[399696139,1766625068369,-152.49495377,0.00036,2]
[399696140,1766625068380,-486.25,0.00036,30]
[399696141,1766625068390,-602.0,0.00036,15]
[399696142,1766625068400,-10788.16541929,0.00036,2]
[399696143,1766625068411,-150.0,0.00036,120]
[399696144,1766625068421,-671.36563388,0.00036005,14]
[399696145,1766625068433,-5000.0,0.00036038,2]
[399696146,1766625068442,-25000.0,0.00036042,2]
[399696147,1766625068452,-150.0,0.00036045,30]
[399696148,1766625068462,-2091.29559812,0.00036045,30]
[399696149,1766625068472,-150.0,0.00036045,30]
[399696150,1766625068482,-664.16282439,0.00036045,30]
[399696151,1766625068492,-150.0,0.00036045,30]
[399696152,1766625068502,-16930.1765732,0.00036045,30]
[399696153,1766625068512,-3494.94,0.00036058,2]
[399696154,1766625068522,-5000.0,0.00036066,2]
[399696155,1766625068533,-352.43363352,0.00036075,2]
[399696156,1766625068543,-5000.0,0.00036077,2]
[399696157,1766625068553,-530.88532,0.00036088,30]
[399696158,1766625068563,-5000.0,0.00036095,2]
[399696159,1766625068572,-2553.16,0.00036099,2]
[399696160,1766625068583,-720.72,0.000361,30]
[399696161,1766625068592,-168.0,0.00036115,11]
[399696162,1766625068602,-5000.0,0.00036124,2]
[399696163,1766625068613,-150.0,0.00036136,120]
[399696164,1766625068623,-819.57735028,0.0003615,2]
[399696165,1766625068633,-600.0,0.00036164,2]
[399696166,1766625068644,-13922.08,0.00036175,2]
[399696167,1766625068654,-5000.0,0.00036191,2]
[399696168,1766625068664,-1277.83,0.000362,14]
[399696169,1766625068674,-12165.59,0.000362,2]
[399696170,1766625068684,-151.0,0.000362,31]
[399696171,1766625068694,-208.678345,0.000362,31]
[399696172,1766625068704,-208.678345,0.000362,31]
[399696173,1766625068714,-151.0,0.000362,31]
[399696174,1766625068729,-208.678345,0.000362,31]
[399696175,1766625068739,-151.0,0.000362,31]
[399696176,1766625068751,-151.0,0.000362,31]
[399696177,1766625068762,-151.0,0.000362,31]
[399696178,1766625068772,-151.0,0.000362,31]
[399696179,1766625068783,-208.678345,0.000362,31]
[399696180,1766625068795,-151.0,0.000362,31]
[399696181,1766625068805,-151.0,0.000362,31]
[399696182,1766625068816,-151.0,0.000362,31]
[399696183,1766625068826,-154.690361,0.000362,31]
[399696184,1766625068836,-151.0,0.000362,31]
[399696185,1766625068846,-164.511049,0.000362,31]
[399696186,1766625068856,-151.0,0.000362,31]
[399696187,1766625068867,-151.0,0.000362,31]
[399696188,1766625068876,-164.511049,0.000362,31]
[399696189,1766625068887,-151.0,0.000362,31]
[399696190,1766625068897,-164.511049,0.000362,31]
[399696191,1766625068908,-151.0,0.000362,31]
[399696192,1766625068919,-151.0,0.000362,31]
[399696193,1766625068929,-164.511049,0.000362,31]
[399696194,1766625068940,-151.0,0.000362,31]
[399696195,1766625068950,-254.167854,0.000362,31]
[399696196,1766625068960,-151.0,0.000362,31]
[399696197,1766625068970,-254.167854,0.000362,31]
[399696198,1766625068980,-151.0,0.000362,31]
[399696199,1766625068990,-254.167854,0.000362,31]
[399696200,1766625069000,-151.0,0.000362,31]
[399696201,1766625069010,-254.167854,0.000362,31]
[399696202,1766625069020,-151.0,0.000362,31]
[399696203,1766625069031,-268.909125,0.000362,31]
[399696204,1766625069041,-161.852356,0.000362,31]
[399696205,1766625069051,-268.909125,0.000362,31]
[399696206,1766625069061,-268.909125,0.000362,31]
[399696207,1766625069071,-268.909125,0.000362,31]
[399696208,1766625069081,-5000.0,0.00036214,2]
[399696209,1766625069091,-5000.0,0.00036217,2]
[399696210,1766625069101,-5000.0,0.00036218,2]
[399696211,1766625069111,-151.0,0.00036218,31]
[399696212,1766625069122,-151.0,0.00036218,31]
[399696213,1766625069132,-151.0,0.00036218,31]
[399696214,1766625069142,-151.0,0.00036218,31]
[399696215,1766625069152,-151.0,0.00036218,31]
[399696216,1766625069162,-151.0,0.00036218,31]
[399696217,1766625069173,-366.956503,0.00036218,31]
[399696218,1766625069183,-366.956503,0.00036218,31]
[399696219,1766625069193,-247.469951,0.00036218,15]
[399696220,1766625069203,-151.0,0.00036218,31]
[399696221,1766625069213,-366.956503,0.00036218,31]
[399696222,1766625069224,-253.230016,0.00036218,31]
[399696223,1766625069234,-366.956503,0.00036218,31]
[399696224,1766625069243,-151.0,0.00036218,31]
[399696225,1766625069254,-253.230016,0.00036218,31]
[399696226,1766625069265,-264.253738,0.00036218,31]
[399696227,1766625069275,-151.0,0.00036218,31]
[399696228,1766625069286,-151.0,0.00036218,31]
[399696229,1766625069295,-253.230016,0.00036218,31]
[399696230,1766625069305,-264.253738,0.00036218,31]
[399696231,1766625069315,-151.0,0.00036218,31]
[399696232,1766625069325,-251.393447,0.00036218,31]
[399696233,1766625069335,-253.230016,0.00036218,31]
[399696234,1766625069346,-264.253738,0.00036218,31]
[399696235,1766625069356,-151.0,0.00036218,31]
[399696236,1766625069366,-184.714791,0.00036218,31]
[399696237,1766625069376,-264.253738,0.00036218,31]
[399696238,1766625069387,-151.0,0.00036218,31]
[399696239,1766625069396,-151.0,0.00036218,30]
[399696240,1766625069406,-151.0,0.00036218,31]
[399696241,1766625069416,-652.493397,0.00036218,31]
[399696242,1766625069427,-151.0,0.00036218,31]
[399696243,1766625069437,-151.0,0.00036218,31]
[399696244,1766625069447,-652.493397,0.00036218,31]
[399696245,1766625069456,-230.060821,0.00036218,31]
[399696246,1766625069466,-151.0,0.00036218,31]
[399696247,1766625069476,-151.0,0.00036218,31]
[399696248,1766625069487,-652.493397,0.00036218,31]
[399696249,1766625069497,-151.0,0.00036218,31]
[399696250,1766625069509,-170.474564,0.00036218,31]
[399696251,1766625069519,-151.0,0.00036218,31]
[399696252,1766625069530,-652.493397,0.00036218,31]
[399696253,1766625069540,-170.474564,0.00036218,31]
[399696254,1766625069550,-170.474564,0.00036218,31]
[399696255,1766625069560,-170.474564,0.00036218,31]
[399696256,1766625069570,-151.0,0.00036218,31]
[399696257,1766625069580,-151.0,0.00036218,31]
[399696258,1766625069589,-226.080824,0.00036218,31]
[399696259,1766625069599,-151.0,0.00036218,31]
[399696260,1766625069608,-226.080824,0.00036218,31]
[399696261,1766625069618,-151.0,0.00036218,31]
[399696262,1766625069627,-226.080824,0.00036218,31]
[399696263,1766625069637,-226.080824,0.00036218,31]
[399696264,1766625069647,-151.0,0.00036218,31]
[399696265,1766625069657,-151.0,0.00036218,31]
[399696266,1766625069667,-151.0,0.00036219,31]
[399696267,1766625069676,-151.0,0.00036219,31]
[399696268,1766625069686,-151.0,0.00036219,31]
[399696269,1766625069695,-208.909236,0.00036219,31]
[399696270,1766625069705,-151.0,0.00036219,31]
[399696271,1766625069715,-151.0,0.00036219,31]
[399696272,1766625069729,-151.0,0.00036219,31]
[399696273,1766625069739,-151.0,0.00036219,31]
[399696274,1766625069748,-151.0,0.00036219,31]
[399696275,1766625069759,-151.0,0.00036219,31]
[399696276,1766625069768,-151.0,0.00036219,31]
[399696277,1766625069778,-151.0,0.00036219,31]
[399696278,1766625069789,-151.0,0.00036219,31]
[399696279,1766625069800,-151.0,0.00036219,31]
[399696280,1766625069810,-151.0,0.00036219,31]
[399696281,1766625069820,-151.0,0.00036219,31]
[399696282,1766625069830,-151.0,0.00036219,31]
[399696283,1766625069840,-151.0,0.00036219,31]
[399696284,1766625069850,-151.0,0.00036219,31]
[399696285,1766625069860,-151.0,0.00036219,31]
[399696286,1766625069870,-151.0,0.00036219,31]
[399696287,1766625069880,-174.54781,0.00036219,31]
[399696288,1766625069890,-151.0,0.00036219,31]
[399696289,1766625069901,-151.0,0.00036219,31]
[399696290,1766625069910,-164.080516,0.00036219,31]
[399696291,1766625069920,-214.57092,0.00036219,31]
[399696292,1766625069930,-151.0,0.00036219,31]
[399696293,1766625069940,-214.57092,0.00036219,31]
[399696294,1766625069950,-151.0,0.00036219,31]
[399696295,1766625069960,-151.0,0.00036219,31]
[399696296,1766625069970,-151.0,0.00036219,31]
[399696297,1766625069980,-151.0,0.00036219,31]
[399696298,1766625069990,-214.57092,0.00036219,31]
[399696299,1766625070000,-151.0,0.00036219,31]
[399696300,1766625070010,-151.0,0.00036219,10]
[399696301,1766625070021,-151.0,0.00036219,31]
[399696302,1766625070031,-151.0,0.00036219,31]
[399696303,1766625070041,-214.57092,0.00036219,31]
[399696304,1766625070051,-151.0,0.00036219,31]
[399696305,1766625070060,-151.0,0.00036219,10]
[399696306,1766625070070,-151.0,0.00036219,31]
[399696307,1766625070080,-151.0,0.00036219,31]
[399696308,1766625070090,-151.0,0.00036219,30]
[399696309,1766625070100,-151.0,0.00036219,10]
[399696310,1766625070110,-151.0,0.00036219,30]
[399696311,1766625070119,-271.381572,0.00036219,31]
[399696312,1766625070129,-151.0,0.00036219,31]
[399696313,1766625070139,-151.0,0.00036219,31]
[399696314,1766625070149,-151.0,0.00036219,30]
[399696315,1766625070159,-241.628405,0.00036219,31]
[399696316,1766625070169,-241.628405,0.00036219,31]
[399696317,1766625070178,-161.69248,0.00036219,31]
[399696318,1766625070189,-241.628405,0.00036219,31]
[399696319,1766625070199,-195.893909,0.00036219,31]
[399696320,1766625070209,-241.628405,0.00036219,31]
[399696321,1766625070219,-151.0,0.00036219,31]
[399696322,1766625070229,-151.0,0.00036219,31]
[399696323,1766625070239,-151.0,0.00036219,31]
[399696324,1766625070250,-685.135947,0.00036219,28]
[399696325,1766625070260,-151.0,0.00036219,31]
[399696326,1766625070270,-685.135947,0.00036219,28]
[399696327,1766625070280,-685.135947,0.00036219,28]
[399696328,1766625070290,-685.135947,0.00036219,28]
[399696329,1766625070300,-151.0,0.00036219,31]
[399696330,1766625070311,-151.0,0.00036219,31]
[399696331,1766625070321,-151.0,0.00036219,31]
[399696332,1766625070405,-151.0,0.00036219,31]
[399696333,1766625070415,-151.0,0.00036219,31]
[399696334,1766625070424,-151.0,0.00036219,31]
[399696335,1766625070434,-151.0,0.00036219,31]
[399696336,1766625070444,-170.76,0.00036219,2]
[399696337,1766625070453,-170.76,0.00036219,2]
[399696338,1766625070463,-170.76,0.00036219,2]
[399696339,1766625070473,-464.96,0.00036219,2]
[399696340,1766625070482,-5000.0,0.00036233,2]
[399696341,1766625070493,-634.13,0.00036234,2]
[399696342,1766625070503,-186.0,0.00036247,30]
[399696343,1766625070513,-339.0,0.00036247,30]
[399696344,1766625070522,-1972.94525316,0.0003625,2]
[399696345,1766625070531,-4476.0,0.00036258,2]
[399696346,1766625070541,-5000.0,0.00036271,2]
[399696347,1766625070551,-150.0,0.00036273,120]
[399696348,1766625070560,-25000.0,0.00036281,2]
[399696349,1766625070570,-25000.0,0.00036285,2]
[399696350,1766625070579,-151.550433,0.00036285,31]
[399696351,1766625070589,-151.550433,0.00036285,31]
[399696352,1766625070598,-151.550433,0.00036285,31]
[399696353,1766625070607,-151.0,0.00036285,31]